bitfinex-derivatives/quotes_SOLF0:USTF0_20230404
["timestamp","ask_amount","ask_price","bid_price","bid_amount"]
[1680635051199,24.08,20.901,20.894,0.06655406]
[1680635057702,24.1,20.899,20.894,0.00655406]
[1680635057903,24.1,20.899,20.888,38.35009203]
[1680635067101,24.16858871,20.901,20.891,23.96]
[1680635067301,128.65449815,20.9,20.891,23.96]
[1680635067607,24.16858871,20.901,20.891,23.96]
[1680635067805,128.65451129,20.9,20.891,23.96]
[1680635072211,24.1,20.899,20.889,24.1]
[1680635082020,0.06858871,20.901,20.891,23.96]
[1680635082520,128.72497914,20.901,20.891,23.96]
[1680635104442,128.72497914,20.901,20.893,23.96]
[1680635104642,0.06858871,20.901,20.893,23.96]
[1680635112444,128.72439935,20.901,20.893,23.96]
[1680635112647,128.65581064,20.9,20.893,23.96]
[1680635112944,128.65581064,20.899,20.893,23.96]
[1680635113146,0.06858871,20.901,20.893,23.96]
[1680635116249,0.06858871,20.901,20.893,11.92165599]
[1680635120353,0.06858871,20.901,20.891,24.1]
[1680635120952,128.72365855,20.901,20.891,24.1]
[1680635132059,24.1,20.899,20.888,24.1]
[1680635132258,128.65506984,20.898,20.888,24.1]
[1680635133459,44.2711,20.897,20.888,24.1]
[1680635133760,128.65506984,20.896,20.888,24.1]
[1680635133957,10.0,20.895,20.888,24.1]
[1680635134155,128.65506984,20.894,20.886,0.06945685]
[1680635136359,128.65506984,20.894,20.886,0.00945685]
[1680635140163,24.1,20.895,20.886,0.00945685]
[1680635141468,128.67885109,20.894,20.886,0.00945685]
[1680635142471,24.1,20.895,20.886,0.00945685]
[1680635144675,128.68117909,20.894,20.886,0.00945685]
[1680635149285,24.1,20.895,20.886,0.00945685]
[1680635152088,58.43300182,20.897,20.886,0.00945685]
[1680635152388,19.11,20.894,20.887,19.2]
[1680635152889,19.11,20.892,20.886,14.44276099]
[1680635153091,19.11,20.892,20.885,19.2]
[1680635157196,24.01,20.894,20.883,24.0]
[1680635158998,0.06551522,20.896,20.887,23.87]
[1680635159292,128.75610817,20.896,20.887,23.87]
[1680635159498,128.75610817,20.896,20.888,10.0]
[1680635159899,128.75610817,20.896,20.887,23.87]
[1680635173904,128.75610817,20.896,20.887,38.46437659]
[1680635175806,128.75610817,20.896,20.887,23.87]
[1680635180116,24.0,20.894,20.883,24.0]
[1680635182711,128.69404471,20.893,20.883,24.0]
[1680635182912,24.0,20.894,20.883,24.0]
[1680635184319,128.69376765,20.893,20.883,24.0]
[1680635186313,0.06551522,20.896,20.886,24.0]
[1680635190617,128.75929758,20.896,20.886,24.0]
[1680635191416,174.47679758,20.896,20.886,24.0]
[1680635191613,128.69378236,20.895,20.886,24.0]
[1680635198226,128.69378236,20.895,20.886,11.98832691]
[1680635202126,152.52378236,20.895,20.884,23.85]
[1680635202328,128.69378236,20.894,20.884,23.85]
[1680635202626,128.69378236,20.893,20.884,23.85]
[1680635202826,128.69378236,20.892,20.884,23.85]
[1680635203026,128.69378236,20.891,20.884,23.85]
[1680635203229,23.83,20.895,20.884,23.85]
[1680635203430,127.48186954,20.894,20.884,23.85]
[1680635205934,23.83,20.895,20.884,23.85]
[1680635208033,45.78301522,20.896,20.888,23.93]
[1680635208334,127.52252184,20.895,20.888,23.93]
[1680635208926,45.78301522,20.896,20.891,23.85]
[1680635209133,45.7175,20.896,20.892,10.0]
[1680635209632,45.7175,20.896,20.891,23.85]
[1680635212135,45.7175,20.896,20.89,23.87]
[1680635222039,45.7175,20.896,20.888,24.0]
[1680635224235,24.0,20.895,20.886,14.15835363]
[1680635224438,127.48292912,20.894,20.886,0.07128592]
[1680635232044,24.01,20.892,20.886,0.07128592]
[1680635232244,10.0,20.891,20.882,0.07045431]
[1680635232645,24.01,20.892,20.882,0.07045431]
[1680635240259,24.0,20.889,20.882,0.07045431]
[1680635240553,10.0,20.888,20.882,0.07045431]
[1680635240851,10.0,20.888,20.878,24.06385097]
[1680635241853,24.0,20.889,20.878,24.06385097]
[1680635244054,10.0,20.888,20.878,24.06385097]
[1680635245653,24.0,20.889,20.878,24.06385097]
[1680635252060,24.01,20.887,20.878,0.06385097]
[1680635252258,48.368,20.886,20.878,0.06385097]
[1680635262264,19.22,20.885,20.878,19.19385097]
[1680635262465,48.368,20.886,20.881,19.13]
[1680635267961,19.22,20.888,20.881,19.13]
[1680635268265,0.07102859,20.89,20.885,19.12]
[1680635268465,19.22,20.892,20.885,19.12]
[1680635270858,0.06927257,20.895,20.888,19.12]
[1680635271467,127.53957927,20.895,20.888,19.12]
[1680635272070,127.53957927,20.895,20.888,24.0]
[1680635272269,0.06927257,20.895,20.888,24.0]
[1680635272472,0.06927257,20.895,20.89,23.93]
[1680635272770,45.6304,20.899,20.89,23.93]
[1680635282171,45.6304,20.899,20.893,24.0]
[1680635282377,45.6304,20.899,20.889,0.06915135]
[1680635282677,45.6304,20.899,20.887,0.06950964]
[1680635282879,45.6304,20.899,20.893,23.91]
[1680635284479,0.06187523,20.9,20.893,23.91]
[1680635285577,122.97399081,20.9,20.893,23.91]
[1680635285777,0.06187523,20.9,20.893,23.91]
[1680635287375,0.06187523,20.9,20.89,23.91]
[1680635288084,122.97413494,20.9,20.89,23.91]
[1680635289182,171.30863494,20.9,20.89,23.91]
[1680635289383,48.39637523,20.9,20.89,23.91]
[1680635290982,122.90535977,20.899,20.89,23.91]
[1680635291185,10.0,20.898,20.89,23.91]
[1680635291684,100.0,20.898,20.89,23.91]
[1680635291879,132.86831982,20.897,20.89,11.99471043]
[1680635292084,122.86831982,20.896,20.887,23.97950964]
[1680635292283,122.86831982,20.895,20.887,23.97950964]
[1680635292485,123.91,20.898,20.887,23.97950964]
[1680635292780,118.70003255,20.897,20.887,23.97950964]
[1680635295490,24.0,20.895,20.887,0.06950964]
[1680635295788,118.70003255,20.894,20.887,0.06950964]
[1680635296192,23.91,20.892,20.88,24.0]
[1680635296581,24.0,20.888,20.877,23.91]
[1680635301992,24.0,20.886,20.876,24.0]
[1680635312001,48.1479,20.889,20.879,23.99]
[1680635312500,23.91,20.888,20.877,23.99]
[1680635312694,10.0,20.887,20.877,23.99]
[1680635313099,23.91,20.888,20.877,23.99]
[1680635314302,23.77,20.884,20.875,0.06502284]
[1680635314506,10.0,20.883,20.875,0.06502284]
[1680635315004,23.77,20.88,20.875,0.06502284]
[1680635315304,23.79,20.877,20.871,45.8886]
[1680635315503,23.79,20.877,20.87,0.06571974]
[1680635316306,23.91,20.874,20.87,0.06571974]
[1680635316505,23.91,20.874,20.865,0.0710388]
[1680635321711,47.4168,20.873,20.865,0.0710388]
[1680635323207,47.4168,20.873,20.867,24.0]
[1680635323607,0.06236241,20.877,20.867,24.0]
[1680635336821,0.06236241,20.877,20.865,0.0710388]
[1680635336822,0.06236241,20.877,20.87,23.91]
[1680635337221,0.06236241,20.877,20.871,10.0]
[1680635337521,38.31892823,20.881,20.871,10.0]
[1680635337721,38.31892823,20.881,20.87,23.91]
[1680635342217,24.07099788,20.881,20.867,23.44657265]
[1680635342425,24.07099788,20.881,20.874,23.99]
[1680635342426,0.07099788,20.881,20.874,23.99]
[1680635342624,0.07099788,20.881,20.875,10.0]
[1680635342823,23.85002456,20.885,20.874,23.99]
[1680635347724,23.79,20.882,20.871,67.6799]
[1680635353633,23.77,20.884,20.873,24.0]
[1680635353828,0.06002456,20.885,20.877,23.91]
[1680635354034,0.06002456,20.885,20.88,23.93]
[1680635354230,0.06203363,20.89,20.88,23.93]
[1680635354432,0.06203363,20.89,20.881,10.0]
[1680635354631,0.06203363,20.89,20.883,23.91]
[1680635361644,0.06203363,20.89,20.887,24.0]
[1680635361839,0.06835877,20.896,20.887,24.0]
[1680635362343,1.82808916,20.896,20.887,24.0]
[1680635362546,118.75745335,20.895,20.887,24.0]
[1680635362945,118.75745335,20.894,20.887,24.0]
[1680635363244,0.06835877,20.896,20.887,24.0]
[1680635363743,120.58551665,20.896,20.887,24.0]
[1680635363944,120.51715788,20.895,20.887,24.0]
[1680635364139,118.75742894,20.894,20.887,24.0]
[1680635364336,0.06835877,20.896,20.887,24.0]
[1680635364741,120.60080034,20.896,20.887,24.0]
[1680635364948,120.53244157,20.895,20.887,24.0]
[1680635365247,118.77271413,20.894,20.887,24.0]
[1680635365445,0.06835877,20.896,20.887,24.0]
[1680635365949,120.60289412,20.896,20.887,24.0]
[1680635366150,120.53453535,20.895,20.887,24.0]
[1680635366445,118.77481666,20.894,20.887,24.0]
[1680635366648,0.06835877,20.896,20.887,24.0]
[1680635372748,118.84948172,20.896,20.887,24.0]
[1680635372948,142.78112295,20.895,20.884,24.06268954]
[1680635373245,24.0,20.895,20.884,24.06268954]
[1680635378458,23.91,20.891,20.884,0.06268954]
[1680635392171,23.79,20.893,20.884,0.06268954]
[1680635401977,71.8483,20.895,20.884,24.05268954]
[1680635404578,48.0783,20.895,20.886,24.0]
[1680635404778,0.06835877,20.896,20.89,23.91]
[1680635404977,0.07122393,20.9,20.89,23.91]
[1680635405284,0.07122393,20.9,20.887,10.0]
[1680635405472,0.07122393,20.9,20.893,24.0]
[1680635406573,0.07122393,20.9,20.889,0.06530466]
[1680635407277,23.77,20.898,20.889,0.06530466]
[1680635407579,10.0,20.897,20.889,0.06530466]
[1680635408071,23.77,20.898,20.889,0.06530466]
[1680635408469,23.77,20.895,20.889,0.06530466]
[1680635408674,23.77,20.895,20.885,10.06890672]
[1680635408973,23.77,20.895,20.885,0.06890672]
[1680635409278,114.24949111,20.894,20.885,0.06890672]
[1680635413379,23.77,20.895,20.885,0.06890672]
[1680635413579,114.24912962,20.894,20.885,0.06890672]
[1680635414980,23.77,20.895,20.885,0.06890672]
[1680635415884,114.24686279,20.894,20.885,0.06890672]
[1680635416384,23.77,20.891,20.885,0.06890672]
[1680635416579,23.77,20.891,20.881,14.30067479]
[1680635416777,23.77,20.891,20.881,0.06342945]
[1680635418484,45.1172,20.89,20.881,0.06342945]
[1680635431991,45.1172,20.89,20.885,23.91]
[1680635440896,0.06607876,20.895,20.885,23.91]
[1680635441096,0.06607876,20.895,20.889,24.0]
[1680635441290,114.35181639,20.899,20.889,24.0]
[1680635444794,114.35181639,20.899,20.892,23.93]
[1680635444999,0.06610127,20.899,20.893,10.0]
[1680635445200,114.2887129,20.901,20.893,5.03795842]
[1680635445997,114.2887129,20.901,20.896,23.99]
[1680635446197,45.4274,20.902,20.896,23.99]
[1680635446397,45.4274,20.902,20.897,10.0]
[1680635452100,45.4274,20.902,20.897,33.99]
[1680635452500,45.4274,20.902,20.897,23.99]
[1680635457306,0.0631146,20.903,20.898,10.0]
[1680635457508,43.87092079,20.908,20.9,24.0]
[1680635457711,43.8008,20.908,20.901,10.0]
[1680635458210,43.8008,20.908,20.9,24.0]
[1680635482232,23.79,20.906,20.897,14.44239172]
[1680635482831,43.8008,20.908,20.897,38.44239172]
[1680635485234,24.0,20.905,20.897,0.06618196]
[1680635485533,10.0,20.904,20.897,0.06618196]
[1680635485833,24.0,20.905,20.897,0.06618196]
[1680635487835,24.0,20.903,20.897,0.06618196]
[1680635488039,24.0,20.903,20.893,0.06580524]
[1680635488334,24.0,20.903,20.893,10.06580524]
[1680635488533,24.0,20.903,20.893,0.06580524]
[1680635492035,23.79,20.904,20.893,24.05580524]
[1680635502140,23.77,20.902,20.893,0.06580524]
[1680635502340,45.7847,20.901,20.893,0.06580524]
[1680635505533,45.7847,20.901,20.895,10.0]
[1680635505938,45.7847,20.901,20.894,24.0]
[1680635506133,45.7847,20.901,20.893,0.06580524]
[1680635507346,23.91,20.899,20.893,0.06580524]
[1680635507647,10.0,20.898,20.892,14.15291586]
[1680635507945,10.0,20.898,20.889,0.06720458]
[1680635508148,23.91,20.899,20.889,0.06720458]
[1680635508644,23.91,20.895,20.889,0.06720458]
[1680635508844,23.91,20.895,20.885,0.06985843]
[1680635509444,43.9557,20.894,20.885,0.06985843]
[1680635509943,43.9557,20.894,20.887,23.93]
[1680635530253,23.79,20.891,20.885,0.06985843]
[1680635530463,23.79,20.891,20.881,0.06978259]
[1680635530657,10.0,20.89,20.881,0.06978259]
[1680635531556,23.79,20.891,20.881,0.06978259]
[1680635532155,23.91,20.888,20.881,0.06978259]
[1680635538762,23.91,20.885,20.881,0.06978259]
[1680635538963,23.91,20.885,20.878,14.64457163]
[1680635539165,23.91,20.885,20.876,0.06569413]
[1680635539364,47.4741,20.884,20.876,0.06569413]
[1680635551877,47.4741,20.884,20.878,23.99]
[1680635554282,23.84137996,20.889,20.878,23.99]
[1680635558181,23.84137996,20.889,20.878,47.38220199]
[1680635561977,0.07137996,20.889,20.882,23.91]
[1680635577098,0.07137996,20.889,20.884,19.19]
[1680635577293,19.12,20.891,20.884,19.19]
[1680635592004,19.12,20.892,20.885,19.18]
[1680635600599,0.07046062,20.894,20.885,19.18]
[1680635600805,19.12,20.893,20.885,19.18]
[1680635602005,19.12,20.893,20.887,19.19]
[1680635604408,0.07046062,20.894,20.89,19.18]
[1680635604612,108.30930556,20.896,20.891,10.0]
[1680635605007,108.30930556,20.896,20.89,19.18]
[1680635605305,19.09,20.897,20.89,19.18]
[1680635612217,46.9335,20.898,20.892,19.19]
[1680635612416,46.9335,20.898,20.893,10.0]
[1680635613018,46.9335,20.898,20.892,19.19]
[1680635617221,0.06601809,20.899,20.892,19.19]
[1680635618323,0.06601809,20.899,20.895,19.19]
[1680635618524,108.32230013,20.902,20.895,19.19]
[1680635632037,19.12,20.901,20.894,19.19]
[1680635632239,62.7547,20.901,20.894,19.19]
[1680635644851,43.6347,20.901,20.9,19.18]
[1680635645049,0.07107175,20.904,20.9,19.18]
[1680635645251,19.09,20.908,20.9,19.18]
[1680635651054,0.0622202,20.909,20.903,19.19]
[1680635651253,19.12,20.911,20.903,19.19]
[1680635672067,19.09,20.909,20.901,19.19]
[1680635691990,19.12,20.91,20.902,19.18]
[1680635698696,19.12,20.91,20.9,0.07076775]
[1680635699396,19.12,20.91,20.902,19.19]
[1680635701998,19.09,20.911,20.903,19.18]
[1680635702197,92.4202628,20.91,20.903,19.18]
[1680635708203,92.4202628,20.91,20.906,19.19]
[1680635708405,92.4202628,20.909,20.906,19.19]
[1680635708596,92.4202628,20.908,20.906,19.19]
[1680635708796,48.43377127,20.913,20.906,19.19]
[1680635709000,92.42126132,20.912,20.906,19.19]
[1680635711505,0.06607127,20.913,20.909,19.19]
[1680635711706,92.3992459,20.916,20.909,19.19]
[1680635712006,92.3992459,20.916,20.911,19.18]
[1680635713408,92.3992459,20.915,20.911,19.18]
[1680635713702,92.3992459,20.914,20.911,19.18]
[1680635714003,19.18530996,20.918,20.911,19.18]
[1680635714202,92.40172007,20.917,20.911,19.18]
[1680635716804,0.06530996,20.918,20.914,19.18]
[1680635717004,92.40482425,20.92,20.914,19.18]
[1680635717200,92.40482425,20.92,20.917,19.18]
[1680635717413,0.06274179,20.923,20.919,19.19]
[1680635717608,92.43860416,20.927,20.921,19.19]
[1680635720104,19.15663128,20.928,20.921,19.19]
[1680635721313,0.06663128,20.928,20.924,19.18]
[1680635721515,92.43098157,20.93,20.924,19.18]
[1680635722016,19.09,20.93,20.923,19.18]
[1680635722214,1.75707821,20.929,20.921,23.77]
[1680635722415,10.0,20.931,20.922,10.0]
[1680635722706,1.75708122,20.93,20.921,23.77]
[1680635722911,0.12259287,20.922,20.921,23.77]
[1680635726813,0.12259287,20.922,20.918,23.92]
[1680635727507,0.12259287,20.922,20.915,23.92]
[1680635729217,0.12259287,20.922,20.913,0.06369144]
[1680635729614,10.12259287,20.922,20.913,0.06369144]
[1680635730715,0.12259287,20.922,20.913,0.06369144]
[1680635732014,23.7,20.921,20.913,0.06369144]
[1680635732218,10.0,20.92,20.913,0.06369144]
[1680635732816,23.7,20.921,20.913,0.06369144]
[1680635742028,23.97259287,20.922,20.913,0.06369144]
[1680635779160,92.40350833,20.921,20.913,0.06369144]
[1680635782258,18.99,20.92,20.913,19.20369144]
[1680635785362,0.12259287,20.922,20.916,19.0]
[1680635785663,92.53587465,20.922,20.916,19.0]
[1680635793865,92.53587465,20.922,20.917,19.14]
[1680635794168,92.41328178,20.921,20.917,19.14]
[1680635794363,0.12259287,20.922,20.917,19.14]
[1680635794563,92.53587465,20.922,20.917,19.14]
[1680635794866,92.41328178,20.921,20.917,19.14]
[1680635795059,92.41328178,20.92,20.917,19.14]
[1680635795263,92.41328178,20.919,20.917,19.14]
[1680635795460,92.41328178,20.918,20.917,19.14]
[1680635796460,0.12259287,20.922,20.917,19.14]
[1680635801967,0.12259287,20.922,20.916,19.14]
[1680635802173,92.53587465,20.922,20.916,19.14]
[1680635809373,18.98,20.92,20.913,19.20369144]
[1680635809574,92.41328178,20.919,20.913,19.20369144]
[1680635809775,92.41328178,20.919,20.913,19.14]
[1680635812078,92.41328178,20.919,20.914,19.0]
[1680635812282,92.41328178,20.918,20.914,19.0]
[1680635812470,18.99,20.921,20.914,19.0]
[1680635812673,92.46589284,20.92,20.914,19.0]
[1680635842095,92.46589284,20.92,20.916,19.0]
[1680635842398,92.46589284,20.919,20.916,19.0]
[1680635842594,92.46589284,20.918,20.916,19.0]
[1680635842795,18.98,20.923,20.916,19.0]
[1680635842994,92.31560297,20.922,20.916,19.0]
[1680635852106,92.31560297,20.922,20.918,19.14]
[1680635852404,92.31560297,20.921,20.918,19.14]
[1680635852603,92.31560297,20.92,20.918,19.14]
[1680635852803,92.31560297,20.919,20.918,19.14]
[1680635853396,92.31560297,20.924,20.918,19.14]
[1680635854406,18.99,20.922,20.915,19.0]
[1680635854700,92.31560297,20.921,20.915,19.0]
[1680635860509,18.98,20.919,20.912,19.20145429]
[1680635860814,102.31560297,20.918,20.912,19.20145429]
[1680635861112,18.98,20.919,20.912,19.14]
[1680635861307,18.98,20.916,20.909,19.0]
[1680635861512,92.31259131,20.915,20.909,19.0]
[1680635861714,10.0,20.914,20.909,19.0]
[1680635862114,18.98,20.915,20.908,19.20387734]
[1680635862314,10.0,20.914,20.908,19.14]
[1680635862813,18.98,20.915,20.908,19.14]
[1680635863921,18.99,20.911,20.904,19.20003184]
[1680635864217,18.98,20.909,20.904,0.06003184]
[1680635864510,18.98,20.909,20.901,19.0]
[1680635866613,10.0,20.908,20.901,19.0]
[1680635866918,18.99,20.905,20.899,0.06551287]
[1680635867118,18.99,20.905,20.898,19.0]
[1680635872112,23.83,20.908,20.896,37.82398809]
[1680635872316,23.83,20.908,20.896,23.76]
[1680635872522,23.83,20.908,20.897,10.0]
[1680635873122,23.83,20.908,20.896,23.76]
[1680635889636,23.98,20.9,20.895,0.06341212]
[1680635889841,23.98,20.9,20.89,0.06326755]
[1680635890040,23.98,20.9,20.889,23.76]
[1680635891744,0.06784168,20.902,20.892,23.98]
[1680635892242,0.06784168,20.902,20.895,23.89]
[1680635894749,0.06784168,20.902,20.892,23.98]
[1680635900855,0.06784168,20.902,20.893,45.6402]
[1680635901054,0.06784168,20.902,20.894,10.0]
[1680635901451,0.06784168,20.902,20.895,23.89]
[1680635901651,23.98,20.909,20.898,23.98]
[1680635902052,38.13852179,20.912,20.9,23.98]
[1680635908056,23.98,20.912,20.9,23.98]
[1680635916465,0.07068507,20.913,20.904,23.98]
[1680635931972,0.07068507,20.913,20.902,23.98]
[1680635932179,19.12,20.911,20.904,19.07]
[1680635942084,19.10068507,20.913,20.905,19.17]
[1680635942381,92.34350757,20.912,20.905,19.17]
[1680635948388,0.07068507,20.913,20.909,19.07]
[1680635948688,92.37275656,20.915,20.909,19.07]
[1680635962196,111.49275656,20.915,20.908,19.17]
[1680635962397,92.37275656,20.914,20.908,19.17]
[1680635969499,19.10119881,20.918,20.911,19.07]
[1680635969705,92.40509297,20.917,20.911,19.07]
[1680635972094,92.40509297,20.917,20.912,19.17]
[1680635972299,0.07119881,20.918,20.912,19.17]
[1680635972598,92.44646202,20.918,20.912,19.17]
[1680635977410,19.12,20.919,20.912,19.17]
[1680635981507,44.909681,20.922,20.912,19.17]
[1680635981809,44.909681,20.922,20.906,10.0]
[1680635981810,92.45434352,20.921,20.915,19.07]
[1680635982007,92.45434352,20.921,20.917,19.07]
[1680635985006,44.8422,20.922,20.917,19.07]
[1680635985613,19.03,20.921,20.914,19.07]
[1680635985908,92.44503746,20.92,20.914,19.07]
[1680635987111,19.03,20.921,20.914,19.07]
[1680635987514,92.44419397,20.92,20.914,19.07]
[1680635988817,19.03,20.921,20.914,19.07]
[1680635989218,19.03,20.919,20.911,19.17]
[1680635992220,19.03,20.919,20.912,19.17]
[1680635992422,19.03,20.919,20.913,10.0]
[1680635992821,19.03,20.919,20.912,19.17]
[1680635997130,23.85,20.921,20.91,24.01547761]
[1680636002035,44.8422,20.922,20.912,23.95]
[1680636009551,44.8422,20.922,20.912,23.74]
[1680636012248,44.8422,20.922,20.913,23.74]
[1680636027966,92.45715942,20.921,20.913,23.74]
[1680636055180,116.39715942,20.921,20.91,38.1128925]
[1680636055381,92.45715942,20.92,20.91,38.1128925]
[1680636057284,19.03,20.919,20.912,19.08]
[1680636057482,92.45715942,20.918,20.912,19.08]
[1680636058486,92.45715942,20.918,20.915,19.08]
[1680636058686,92.45715942,20.917,20.915,19.08]
[1680636058888,64.0022,20.922,20.915,19.08]
[1680636059090,92.45180026,20.921,20.915,19.08]
[1680636071998,111.48180026,20.921,20.914,19.16]
[1680636072202,92.45180026,20.92,20.914,19.16]
[1680636082005,92.45180026,20.92,20.916,19.16]
[1680636082304,92.45180026,20.919,20.916,19.16]
[1680636082505,92.45180026,20.918,20.916,19.16]
[1680636082704,44.8422,20.922,20.916,19.16]
[1680636082905,92.47661488,20.921,20.916,19.16]
[1680636085103,92.47661488,20.921,20.92,19.08]
[1680636085310,0.06586681,20.924,20.92,19.08]
[1680636085609,92.51105006,20.928,20.922,19.08]
[1680636085907,92.51105006,20.928,20.924,19.16]
[1680636086206,19.16,20.931,20.924,19.16]
[1680636086407,92.51355225,20.93,20.924,19.16]
[1680636093208,19.16,20.931,20.924,19.16]
[1680636105921,19.16,20.931,20.924,33.46959394]
[1680636110124,47.9448,20.932,20.928,19.16]
[1680636118832,66.9748,20.932,20.925,19.08]
[1680636119322,19.16,20.929,20.922,19.16]
[1680636125430,19.03,20.923,20.893,143.1]
[1680636125735,19.16,20.907,20.893,143.1]
[1680636126032,19.16,20.904,20.896,19.08]
[1680636126233,19.03,20.9,20.893,19.16]
[1680636126530,10.0,20.909,20.892,0.07127967]
[1680636126531,19.16,20.898,20.892,0.07127967]
[1680636126730,19.16,20.898,20.89,19.16]
[1680636127130,100.0,20.899,20.888,0.06102244]
[1680636127328,24.01,20.893,20.888,0.06102244]
[1680636127633,143.1,20.899,20.883,0.06556183]
[1680636127634,24.01,20.89,20.883,0.06556183]
[1680636127832,24.01,20.887,20.879,0.07014993]
[1680636128135,0.06263585,20.89,20.881,23.9]
[1680636128324,24.07713469,20.893,20.881,23.9]
[1680636129641,0.06713469,20.893,20.878,0.06755158]
[1680636129942,24.01,20.892,20.881,24.01]
[1680636130440,24.01,20.892,20.878,0.06755158]
[1680636130441,24.01,20.889,20.878,24.07755158]
[1680636132242,24.01,20.887,20.878,0.06755158]
[1680636133144,24.01,20.883,20.878,0.06755158]
[1680636133444,24.01,20.883,20.873,0.0699655]
[1680636136640,24.01,20.886,20.875,23.9]
[1680636138146,23.86303703,20.886,20.875,23.9]
[1680636142150,24.01,20.887,20.877,23.9]
[1680636142448,10.0,20.886,20.877,23.9]
[1680636143148,24.01,20.887,20.877,23.9]
[1680636147054,24.01,20.884,20.873,24.0799655]
[1680636154660,24.01,20.883,20.873,24.0799655]
[1680636154956,24.01,20.883,20.874,45.0896]
[1680636159760,24.01,20.879,20.874,45.0896]
[1680636159961,24.01,20.879,20.873,0.0699655]
[1680636160259,24.01,20.879,20.872,14.13559243]
[1680636160460,24.01,20.879,20.869,0.06362664]
[1680636160660,24.01,20.879,20.869,8.8623303]
[1680636162060,24.01,20.881,20.87,24.01]
[1680636162264,24.01,20.881,20.871,10.0]
[1680636162763,24.01,20.881,20.87,24.01]
[1680636163358,24.01,20.878,20.869,0.06362664]
[1680636164464,0.0600327,20.884,20.872,100.0]
[1680636164864,0.0600327,20.884,20.873,34.01]
[1680636165266,0.0600327,20.884,20.875,10.0]
[1680636165764,0.0600327,20.884,20.874,47.5138]
[1680636169267,0.0600327,20.884,20.877,23.9]
[1680636171972,0.0600327,20.884,20.878,23.9]
[1680636172271,0.06513692,20.888,20.879,10.0]
[1680636172568,0.06513692,20.888,20.882,23.9]
[1680636172774,0.06559463,20.892,20.882,23.9]
[1680636174070,0.06559463,20.892,20.879,10.0]
[1680636174071,0.06559463,20.892,20.884,23.9]
[1680636174374,0.06559463,20.892,20.888,24.01]
[1680636174572,0.06614483,20.897,20.889,10.0]
[1680636174770,0.06614483,20.897,20.888,24.01]
[1680636174971,100.0,20.919,20.885,10.0]
[1680636175177,1.75838664,20.918,20.901,24.01]
[1680636175471,14.48107126,20.92,20.907,24.01]
[1680636175672,44.7306,20.922,20.907,24.01]
[1680636176170,68.8060492,20.922,20.911,24.01]
[1680636177173,44.7960492,20.922,20.909,35.91]
[1680636179075,44.7960492,20.922,20.913,10.0]
[1680636179278,44.7960492,20.922,20.915,35.91]
[1680636179776,0.0654492,20.922,20.915,35.91]
[1680636179977,35.91,20.932,20.918,35.91]
[1680636180176,11.75687638,20.931,20.918,35.91]
[1680636180371,10.0,20.931,20.918,35.91]
[1680636180674,1.75704792,20.93,20.918,35.91]
[1680636181680,1.75704792,20.929,20.918,35.91]
[1680636181875,1.75704792,20.928,20.918,35.91]
[1680636182079,10.06543421,20.931,20.917,0.07005735]
[1680636182277,1.75703969,20.93,20.917,0.07005735]
[1680636182477,1.75703969,20.929,20.917,0.07005735]